Cogmind - Beta 17 @@@ ROGUE MODE // 2026.07.28 @ 13:51:38 Player: LandRaider Result: Destroyed by X-57 Shotgunner with Shotgun Performance ------------- Evolutions (3) 1500 Regions Visited (6) 1200 Robots Destroyed (90) 450 Value Destroyed (3387) 3387 Prototype IDs (5) 100 Alien Tech Used (0) 0 Bonus (200) 200 TOTAL SCORE: 6837 Bonus ------- Entered Garrisons 200 Cogmind --------- Core Integrity 0/700 Matter 276/300 Energy 58/100 System Corruption 1% Temperature Cool (0) Movement Core (750) Ox14 Location -7/Factory Parts ------- > --- POWER (3) -------- (None) > --- PROPULSION (3) --- (None) > --- UTILITY (4) ------ High-capacity Storage Unit Advanced Visual Processing Unit > --- WEAPON (3) ------- Rocket Launcher > --- INVENTORY (20) --- Cryofiber Web Improved Heat Sink Large Storage Unit Trap Scanner Improved Sensor Array Improved Terrain Scan Processor Core Analyzer Matter Filter Particle Charger Improved Light Armor Plating Shock Absorption System EM Disruption Field Component Analysis Suite Heavy Laser Heavy Laser Heavy Laser Peak State ------------ > --- POWER ------------ Light Deuterium Engine Improved Deuterium Engine Micro Nuclear Core > --- PROPULSION ------- Improved Treads Advanced Treads Advanced Treads > --- UTILITY ---------- Improved Cooling System High-capacity Storage Unit Advanced Visual Processing Unit Transmission Jammer > --- WEAPON ----------- Heavy Laser Gatling Laser Gauss Rifle > --- INVENTORY -------- Light Nuclear Core Cryofiber Web Improved Heat Sink Large Storage Unit Trap Scanner Improved Sensor Array Improved Terrain Scan Processor Core Analyzer Matter Filter Particle Charger Improved Light Armor Plating Shock Absorption System EM Disruption Field Component Analysis Suite Heavy Laser Heavy Laser Heavy Laser Gatling Laser Gauss Rifle Rocket Launcher [Rating: 49] Favorites ----------- Power Light Nuclear Core Engine Improved Ion Engine Power Core Light Nuclear Core Propulsion Improved Treads Treads Improved Treads Leg Aluminum Leg Wheel Compact Wheel Hover Unit Gravmag System Flight Unit VTOL Module Utility High-capacity Storage Unit Device Improved Heat Sink Storage High-capacity Storage Unit Processor Advanced Visual Processing Unit Protection Improved Light Armor Plating Weapon Field Laser Energy Gun Field Laser Ballistic Gun Gauss Rifle Ballistic Cannon Flak Cannon Launcher Mini Grenade Launcher Build | -11 -10 -9 -8 -7 -7 -7 ------- Run | Yrd Mat Mat Mat Fac Gar Fac Slots Evolved 6 | . . 2 2 2 . . Power 2 | . . 1 . 1 . . Propulsion 1 | . . . 1 . . . Utility 2 | . . 1 1 . . . Weapon 1 | . . . . 1 . . Parts Attached 102 | 7 12 28 18 11 6 20 Power 25 | 2 3 6 3 4 3 4 Engine 17 | 2 1 5 3 3 . 3 Core 8 | . 2 1 . 1 3 1 Reactor . | . . . . . . . Propulsion 24 | 2 4 9 5 2 . 2 Treads 14 | . 2 4 5 2 . 1 Leg 5 | . 2 3 . . . . Wheel 2 | 2 . . . . . . Hover 1 | . . . . . . 1 Flight 2 | . . 2 . . . . Utility 27 | 1 3 4 6 2 1 10 Device 15 | . . 1 4 . 1 9 Storage 3 | 1 2 . . . . . Processor 4 | . 1 2 1 . . . Hackware . | . . . . . . . Protection 5 | . . 1 1 2 . 1 Artifact . | . . . . . . . Weapon 26 | 2 2 9 4 3 2 4 Energy Gun 12 | . 1 4 3 1 1 2 Energy Cannon . | . . . . . . . Ballistic Gun 9 | 2 1 2 . 2 1 1 Ballistic Cannon 2 | . . 2 . . . . Launcher 3 | . . 1 1 . . 1 Special Weapon . | . . . . . . . Impact Weapon . | . . . . . . . Slashing Weapon . | . . . . . . . Piercing Weapon . | . . . . . . . Special Melee Weapon . | . . . . . . . Unidentified Prototypes . | . . . . . . . Parts Lost 45 | . 3 11 11 1 4 15 Power 15 | . 1 3 4 1 2 4 Propulsion 8 | . 1 2 1 . . 4 Utility 5 | . . 1 2 . . 2 Weapon 17 | . 1 5 4 . 2 5 Highest Loss Streak 10 | . 2 4 8 1 2 10 To Critical Strikes . | . . . . . . . Average Backups 14 | 4 6 13 17 16 16 18 Power 1 | . 1 2 1 . . 1 Propulsion 1 | 3 2 2 2 1 . . Utility 7 | . 1 3 8 10 11 12 Weapon 4 | . 1 4 5 3 3 5 Tool/Special . | . . . . . . . Unused Backups 23 | . 1 3 . 2 4 13 Power 1 | . . . . . . 1 Propulsion 2 | . 1 1 . . . . Utility 15 | . . 1 . 2 4 8 Weapon 5 | . . 1 . . . 4 Tool/Special . | . . . . . . . Average Slot Usage (%) 95 | . 95 95 84 94 99 97 Engine 9 | . 6 13 6 13 11 6 Core 9 | . 7 7 3 3 11 15 Treads 16 | . 9 9 25 23 23 21 Leg 5 | . 14 11 . . . . Device 5 | . . 1 9 7 7 9 Storage 9 | . 14 10 9 7 7 7 Processor 11 | . 11 16 11 7 7 7 Protection 3 | . . 2 3 6 7 4 Energy Gun 9 | . 6 7 6 7 11 14 Ballistic Gun 9 | . 20 9 4 10 10 6 Ballistic Cannon 1 | . . 2 4 3 . . Peak Build Rating 49 | 6 11 23 29 45 46 49 Average Rating 27 | 4 8 16 24 38 43 44 On Entrance 22 | . 6 11 22 28 43 45 Avg Prop Armor Cover (%) 6 | . . . . . . 6 Naked Turns . | . . . . . . . Heaviest Build 82 | 14 47 61 61 82 78 76 Greatest Support 69 | 32 40 46 69 69 67 67 Greatest Overweight (x) 23 | 3 2 6 1 1 1 23 Average Overweight (x) . | . . 1 . . . 1 Largest Inventory Capacity 20 | 8 20 20 20 20 20 20 Average Capacity 18 | 7 8 19 20 20 20 20 Most Carried 20 | 7 10 20 20 20 20 20 Average Carried 15 | 4 5 13 18 18 18 19 Final Capacity 20 | 8 20 20 20 20 20 20 Final Carried 19 | 6 10 18 19 18 18 16 Class Distribution -------------------- 30% | Scavenger-Mutant 29% | Scavenger-Tank 27% | Mutant 6% | Scavenger-Skirmisher 3% | Tank Dominant Class ---------------- Mutant | -10/Materials Scavenger-Mutant | -9/Materials Mutant | -8/Materials Scavenger-Tank | -7/Factory Scavenger-Tank | -7/Garrison Scavenger-Tank | -7/Factory Resources | -11 -10 -9 -8 -7 -7 -7 ----------- Run | Yrd Mat Mat Mat Fac Gar Fac Matter Collected 2558 | 196 483 505 400 390 224 360 Remotely . | . . . . . . . Salvage Created 3399 | 51 639 924 357 605 257 566 Parts 186 | 3 33 47 11 31 15 46 Haulers Intercepted 2 | . . 2 . . . . Recyclers Shooed . | . . . . . . . Parts Field Recycled . | . . . . . . . Retrieved Matter . | . . . . . . . Parts Self-Destructed . | . . . . . . . Prevented . | . . . . . . . Parts Restored . | . . . . . . . Kills | -11 -10 -9 -8 -7 -7 -7 ------- Run | Yrd Mat Mat Mat Fac Gar Fac Combat Hostiles Destroyed 61 | . 12 13 8 11 7 10 Guns 48 | . 12 10 2 8 7 9 Cannons 9 | . . 2 4 3 . . AOE 3 | . . 1 2 . . . Classes Destroyed 13 | 1 5 2 2 . 1 2 Worker 5 | . 2 . . . . 3 Builder 3 | . . . . . . 3 Hauler 2 | . . 2 . . . . Recycler 7 | 1 1 3 1 1 . . Operator 4 | . 2 . . 1 . 1 Watcher 8 | . 3 3 1 . . 1 Swarmer 4 | . 3 . . . . 1 Grunt 37 | . 9 9 4 6 5 4 Sentry 11 | . . 4 1 5 . 1 Specialist 2 | . . . 2 . . . Hunter 3 | . . . . . 2 1 Programmer 3 | . . . . . . 3 Heavy 1 | . . . 1 . . . Best Kill Streak 9 | 1 9 3 4 4 3 4 Combat Bots Only 4 | . 3 2 2 4 3 3 Max Kills in Single Turn 2 | 1 2 2 1 1 1 2 Gunslinging . | . . . . . . . Exploded 1 | . . 1 1 . . . Melee . | . . . . . . . Uniques/NPCs Destroyed . | . . . . . . . Combat | -11 -10 -9 -8 -7 -7 -7 -------- Run | Yrd Mat Mat Mat Fac Gar Fac Hostile Shots Fired 733 | . 103 133 76 131 46 244 Missed 227 | . 26 36 27 35 9 94 Hits 506 | . 77 97 49 96 37 150 Projectile 506 | . 77 97 49 96 37 150 AOE 2 | . . . 1 1 . . Critical Strikes 12 | . 2 1 4 1 1 3 Part Disruptions 1 | . . . . 1 . . Damage Taken 7018 | . 896 1443 1383 939 551 1806 Core 1305 | . 149 299 155 116 51 535 Absorbed by Shields . | . . . . . . . Redirected to Shielding 154 | . . 45 109 . . . Regen/Repaired (Parts) 518 | . . 518 . . . . Core Remaining (%) 59 | 100 40 25 71 . . . Volleys Fired 269 | 1 80 66 42 24 21 35 Largest 3 | 2 2 2 2 3 3 3 Hottest 177 | 40 60 100 100 125 171 177 Shots Fired 535 | 2 152 105 67 70 52 87 Gun 480 | 2 152 87 43 58 52 86 Cannon 44 | . . 15 17 12 . . Launcher 11 | . . 3 7 . . 1 Special . | . . . . . . . Kinetic 346 | 2 137 69 35 46 26 31 Thermal 170 | . 15 29 21 24 26 55 Explosive 11 | . . 3 7 . . 1 Electromagnetic 8 | . . 4 4 . . . Robot Hit Streak 18 | 2 10 8 8 11 12 18 Robot Miss Streak 6 | . 4 3 6 6 6 3 Penetration Max . | . . . . . . . Secondary Targets 7 | . 3 1 . 1 1 1 Max Gunslinging Chain 1 | . 1 1 . 1 1 1 Shots Hit Robots 354 | 2 94 67 47 54 28 62 Core Hits 221 | 2 39 29 33 48 25 45 Critical Kills . | . . . . . . . Critical Parts Destroyed 1 | . . . . . . 1 Critical Strikes 9 | . . 2 . 2 2 3 Burn 7 | . . 1 . 2 2 2 Destroy 2 | . . 1 . . . 1 Melee Attacks . | . . . . . . . Impact . | . . . . . . . Slashing . | . . . . . . . Piercing . | . . . . . . . Sneak Attacks . | . . . . . . . Combat Hostiles . | . . . . . . . Follow-up Attacks . | . . . . . . . Damage Inflicted 6770 | 28 1036 1200 1083 1133 476 1814 Guns 5080 | 28 1036 884 378 914 476 1364 Cannons 677 | . . 176 282 219 . . Explosions 1013 | . . 140 423 . . 450 Melee . | . . . . . . . Ramming . | . . . . . . . Kinetic 3665 | 28 982 681 455 860 279 380 Thermal 2018 | . 54 341 169 273 197 984 Explosive 1013 | . . 140 423 . . 450 Electromagnetic 74 | . . 38 36 . . . Impact . | . . . . . . . Slashing . | . . . . . . . Piercing . | . . . . . . . Highest Corruption 2 | . 1 2 . . . 1 Average Corruption 1 | . 1 2 . . . 1 Corruption Purged 1 | . . . . . . 1 Corruption Blocked . | . . . . . . . Effects 13 | . 5 5 . . . 3 Message Errors 4 | . . 2 . . . 2 Matter Fused 2 | . 1 1 . . . . Heat Flow Errors 3 | . 2 1 . . . . Energy Discharges 1 | . 1 . . . . . Data Loss (minor) 2 | . . 1 . . . 1 Weapon Failures 1 | . 1 . . . . . Overload Shots . | . . . . . . . Overflow Damage 6 | . . . 6 . . . Projectiles . | . . . . . . . Explosions 6 | . . . 6 . . . Melee . | . . . . . . . Knockbacks 15 | . . 4 9 2 . . Impact . | . . . . . . . Kinetic 15 | . . 4 9 2 . . Secondary . | . . . . . . . Self-Inflicted Damage 274 | . . 106 168 . . . Shots 9 | . . 3 6 . . . Rammed . | . . . . . . . Targets Rammed 1 | . 1 . . . . . Kicked 1 | . 1 . . . . . Crushed . | . . . . . . . Highest Temperature 697 | . 263 386 60 340 427 697 Average Temperature 112 | . 50 108 25 94 117 173 Received Heat Transfer 2256 | . 492 549 288 393 261 273 Effects 20 | . . 1 . 1 4 14 Shutdowns 9 | . . . . 1 2 6 Energy Bleed 4 | . . . . . 1 3 Matter Decay 1 | . . . . . 1 . Short Circuit 1 | . . . . . . 1 Damage (minor) 2 | . . 1 . . . 1 Damage (major) 3 | . . . . . . 3 Siege Activations . | . . . . . . . Martial Activations . | . . . . . . . Shielding Activations . | . . . . . . . Robots Disrupted . | . . . . . . . Combat Hostiles . | . . . . . . . Robots Corrupted . | . . . . . . . Combat Hostiles . | . . . . . . . Parts Fried . | . . . . . . . Impact Corruptions . | . . . . . . . Robots Melted 1 | . . . . . . 1 Combat Hostiles 1 | . . . . . . 1 Parts Melted 11 | . . 2 . . 1 8 Heat Transferred 4855 | . 125 888 370 740 582 2150 Parts Sabotaged . | . . . . . . . Parts Stolen . | . . . . . . . Parts Stripped . | . . . . . . . Power Chain Reactions . | . . . . . . . Alert | -11 -10 -9 -8 -7 -7 -7 ------- Run | Yrd Mat Mat Mat Fac Gar Fac Maximum Alert Level 1 | . . . . . 1 . Low Security (%) 93 | 100 100 100 100 100 41 100 Level 1 6 | . . . . . 58 . Level 2 . | . . . . . . . Level 3 . | . . . . . . . Level 4 . | . . . . . . . Level 5 . | . . . . . . . High Security . | . . . . . . . Max Security . | . . . . . . . Peak Influence 363 | 5 122 76 91 142 363 190 Initial 190 | . . . 6 14 93 190 Average 57 | . 49 10 15 62 254 48 Influence Increases 2195 | 5 387 476 309 329 310 379 Destroy 0b10 Robot/C 1220 | . 240 260 160 220 140 200 Destroy 0b10 Robot/NC 145 | 5 40 40 10 10 . 40 Destroy Leader 350 | . 66 100 52 60 . 72 Successful Hack 73 | . 11 24 8 24 . 6 Disable Machine 15 | . . 15 . . . . Anti-Garrison Action 150 | . . . . . 150 . Destroy Structure 77 | . . 22 34 . 5 16 Partial Spotted 15 | . . . . . 15 . Lose Combat Pursuer 150 | . 30 15 45 15 . 45 Influence Decreases 2179 | 5 384 463 292 228 81 726 Entered New Map 246 | . . 3 10 19 41 173 Time Decay 1444 | 5 354 279 177 199 . 430 Lost Part 378 | . 30 70 105 10 40 123 Purge Threat 111 | . . 111 . . . . Squads Dispatched 29 | . 6 4 4 5 . 10 Investigation 12 | . 4 3 1 1 . 3 Extermination 3 | . . . . . . 3 Reinforcement 9 | . 2 1 3 1 . 2 Assault . | . . . . . . . Garrison 5 | . . . . 3 . 2 Intercept . | . . . . . . . Searches Triggered . | . . . . . . . Construction Impeded . | . . . . . . . Haulers Reinforced . | . . . . . . . Active Scanning Responses . | . . . . . . . Cargo Convoy Interrupts 1 | . . . . . . 1 Stealth | -11 -10 -9 -8 -7 -7 -7 --------- Run | Yrd Mat Mat Mat Fac Gar Fac Distress Signals 5 | . 2 2 1 . . . Communications Jammed . | . . . . . . . Distress Signals . | . . . . . . . Times Spotted 105 | . 20 19 15 13 7 31 Peak Tracking Total 11 | . 6 4 5 5 3 11 Tactical Retreats 9 | . 2 1 3 1 . 2 Traps | -11 -10 -9 -8 -7 -7 -7 ------- Run | Yrd Mat Mat Mat Fac Gar Fac Traps Triggered 6 | . 2 1 . . 3 . Indirectly . | . . . . . . . Trap Hack Attempts . | . . . . . . . Triggered . | . . . . . . . Disarmed . | . . . . . . . Reprogrammed . | . . . . . . . Reused . | . . . . . . . Traps Extracted . | . . . . . . . Installed . | . . . . . . . Triggered . | . . . . . . . Machines | -11 -10 -9 -8 -7 -7 -7 ---------- Run | Yrd Mat Mat Mat Fac Gar Fac Machines Disabled 3 | . . 1 . . 2 . Max in Single Turn 1 | . . 1 . . 1 . Garrison Relay 2 | . . . . . 2 . Machines Repaired . | . . . . . . . Machines Dismantled . | . . . . . . . Machines Sabotaged . | . . . . . . . Overloaded Fab Kills . | . . . . . . . Hacking | -11 -10 -9 -8 -7 -7 -7 --------- Run | Yrd Mat Mat Mat Fac Gar Fac Machines Accessed 24 | . 6 8 2 2 1 5 Terminals 15 | . 4 6 2 1 1 1 Fabricators . | . . . . . . . Repair Stations 1 | . . 1 . . . . Recycling Units 4 | . 2 . . . . 2 Scanalyzers 2 | . . 1 . . . 1 Garrison Access 2 | . . . . 1 . 1 Total Hacks 87 | . 25 35 7 5 3 12 Successful 47 | . 13 23 5 1 . 5 Failed 34 | . 10 9 2 4 3 6 Catastrophic 3 | . 1 . . . 1 1 Database Lockouts 6 | . 2 3 . . . 1 Manual 1 | . . . . . . 1 Terminals 66 | . 22 28 7 3 3 3 Fabricators . | . . . . . . . Repair Stations 4 | . . 4 . . . . Recycling Units 7 | . 3 . . . . 4 Scanalyzers 6 | . . 3 . . . 3 Garrison Access 4 | . . . . 2 . 2 Terminal Hacks 31 | . 10 16 5 . . . Record 15 | . 9 6 . . . . Robot Analysis 1 | . . 1 . . . . Prototype ID Bank 3 | . . 2 1 . . . Emergency Access Points 3 | . . 1 2 . . . Scanalyzer Index 1 | . . 1 . . . . Alert Level 2 | . . 1 1 . . . Unreport Threat 2 | . . 2 . . . . Locate Traps 1 | . . 1 . . . . Dispatch Records 1 | . . . 1 . . . Investigation Status 1 | . 1 . . . . . Zone Layout 1 | . . 1 . . . . Fabricator Hacks . | . . . . . . . Repair Station Hacks 4 | . . 4 . . . . Scan Component 2 | . . 2 . . . . Repair 2 | . . 2 . . . . Recycling Unit Hacks 5 | . 3 . . . . 2 Report Inventory 4 | . 2 . . . . 2 Retrieve Components 1 | . 1 . . . . . Scanalyzer 5 | . . 3 . . . 2 Insert Component 2 | . . 1 . . . 1 Retrieve Study 3 | . . 2 . . . 1 Garrison Access Hacks 2 | . . . . 1 . 1 Unlock Access 2 | . . . . 1 . 1 Unauthorized Hacks . | . . . . . . . Terminals . | . . . . . . . Fabricators . | . . . . . . . Repair Stations . | . . . . . . . Recycling Units . | . . . . . . . Scanalyzers . | . . . . . . . Garrison Access . | . . . . . . . Data Cores Recovered . | . . . . . . . Used . | . . . . . . . Hacking Detections 20 | . 4 7 2 2 1 4 Full Trace Events 17 | . 4 6 2 1 1 3 Feedback Events 1 | . 1 . . . . . Corruption 1 | . 1 . . . . . Feedback Blocked . | . . . . . . . Robot Schematics Acquired . | . . . . . . . Robots Built . | . . . . . . . Authchips . | . . . . . . . Time . | . . . . . . . Total Robot Build Rating . | . . . . . . . Part Schematics Acquired . | . . . . . . . Parts Built . | . . . . . . . Authchips . | . . . . . . . Time . | . . . . . . . Total Part Build Rating . | . . . . . . . Part Studies Acquired 3 | . . 2 . . . 1 Parts Repaired 2 | . . 2 . . . . Time 58 | . . 58 . . . . Parts Recycled . | . . . . . . . Recycled Matter . | . . . . . . . Retrieved Matter . | . . . . . . . Retrieved Components 6 | . 6 . . . . . Parts Scanalyzed . | . . . . . . . Part Schematics Acquired . | . . . . . . . Parts Damaged . | . . . . . . . Bothacking | -11 -10 -9 -8 -7 -7 -7 ------------ Run | Yrd Mat Mat Mat Fac Gar Fac Used RIF Installer . | . . . . . . . Robots Hacked . | . . . . . . . Non-combat . | . . . . . . . Combat . | . . . . . . . Robot Hacks Applied . | . . . . . . . Relay Couplers Released 8 | . . . . . 8 . Machine Destruction 8 | . . . . . 8 . Fabnet Peak Effective % . | . . . . . . . Robots Rewired . | . . . . . . . Allies Hacked . | . . . . . . . Hacks Repelled . | . . . . . . . Allies | -11 -10 -9 -8 -7 -7 -7 -------- Run | Yrd Mat Mat Mat Fac Gar Fac Total Allies . | . . . . . . . Largest Group . | . . . . . . . Highest-Rated Group . | . . . . . . . Highest-Rated Ally . | . . . . . . . Initial Warlord ECA Mod 2 | . . . . . . 2 Total Orders . | . . . . . . . Ally Attacks . | . . . . . . . Total Damage . | . . . . . . . Kills . | . . . . . . . Allies Corrupted . | . . . . . . . Allies Melted . | . . . . . . . Intel | -11 -10 -9 -8 -7 -7 -7 ------- Run | Yrd Mat Mat Mat Fac Gar Fac Active Infowar (turns) 6196 | . 763 1920 707 492 755 1559 Optics 5426 | . 763 1629 228 492 755 1559 Sensors 567 | . . 291 276 . . . Traps 450 | . . . . . 299 151 T.N.C. 1989 | . . 1280 707 2 . . Jamming 677 | . . . . . . 677 Robot Analysis Total 1 | . . 1 . . . . Derelict Logs Recovered . | . . . . . . . Drone Launches . | . . . . . . . Drone Recoveries . | . . . . . . . Exploration | -11 -10 -9 -8 -7 -7 -7 ------------- Run | Yrd Mat Mat Mat Fac Gar Fac Turns Passed 6489 | 121 935 1920 707 492 755 1559 Spaces Moved 2484 | 86 522 621 324 184 223 524 Core 23 | 18 . . . . . 5 Treads 1653 | . 105 298 324 184 223 519 Legs 653 | . 333 320 . . . . Wheels 152 | 68 84 . . . . . Hover . | . . . . . . . Flight 3 | . . 3 . . . . Fastest Speed 50 | 50 100 240 160 155 150 150 Average Speed 202 | 115 127 254 166 204 228 239 Slowest Speed 1200 | 200 260 512 240 235 230 1200 Overloaded Moves . | . . . . . . . Propulsion Burnouts . | . . . . . . . Robots Hopped . | . . . . . . . Potential Cave-ins . | . . . . . . . Cave-ins Triggered . | . . . . . . . Exploration Rate (%) 31 | 4 89 58 22 3 31 11 Regions Visited 6 Branch Regions . Pre-discovered Areas . | . . . . . . . Known Exits Taken 1 | . . . . 1 . . Unknown Exits Taken 4 | 1 1 1 1 . . . Scrap Searched . | . . . . . . . Spaces Dug . | . . . . . . . Terrain Destroyed 73 | . . 28 35 . . 10 Melee . | . . . . . . . Projectile . | . . . . . . . AOE 73 | . . 28 35 . . 10 Terrain Rammed . | . . . . . . . Walls Destroyed . | . . . . . . . Machines Disabled . | . . . . . . . Actions | -11 -10 -9 -8 -7 -7 -7 --------- Run | Yrd Mat Mat Mat Fac Gar Fac Total 3460 | 105 652 852 424 249 426 752 Wait 378 | . 12 66 13 6 151 130 Move 2479 | 85 521 620 323 184 222 524 Hop . | . . . . . . . Pick Up 137 | 12 16 52 16 12 10 19 Fast Attach 3 | . . 1 . . . 2 Attach 60 | 6 5 14 17 7 5 6 Detach 4 | . . . 3 . 1 . Swap 61 | 1 8 18 6 6 4 18 Drop 62 | . 9 15 4 10 6 18 Fire 269 | 1 80 66 42 24 21 35 Melee . | . . . . . . . Ram . | . . . . . . . Kick 1 | . 1 . . . . . Crush . | . . . . . . . Escape Stasis 6 | . . . . . 6 . Rewire . | . . . . . . . Trap . | . . . . . . . Miscellaneous . | . . . . . . . Route ------- -11/Scrapyard -10/Materials (discovered 4 exits: *Mat x2 / [*Min x2]) -9/Materials (discovered 5 exits: *Mat x2 / [*Min x2] / [*Sto]) -8/Materials -7/Factory -7/Garrison -7/Factory (discovered 1 exit: Gar) History --------- Turn | Location | Event 21 | -11/Scrapyard | Discovered new exit (range 14) 122 | -11/Scrapyard | Entered Materials 315 | -10/Materials | Build established: Mutant 322 | -10/Materials | Discovered new exit (range 18) 425 | -10/Materials | Central database locked down 574 | -10/Materials | Core integrity fell below 50% 615 | -10/Materials | Central database locked down 741 | -10/Materials | Discovered new exit (range 13) 808 | -10/Materials | Discovered new exit (range 13) 955 | -10/Materials | Build established: Scavenger-Mutant 988 | -10/Materials | Discovered new exit (range 11) 1057 | -10/Materials | Entered another Materials area 1057 | -9/Materials | Evolved 2 slots: Power x1, Utility x1 1216 | -9/Materials | Discovered new exit (range 14) 1244 | -9/Materials | Met 8R-AWN 1307 | -9/Materials | Discovered new exit (range 15) 1338 | -9/Materials | Discovered new exit (range 18) 1417 | -9/Materials | Lost 4 parts (1p1n2w) 1481 | -9/Materials | Lost 4 parts (2p2w) 1583 | -9/Materials | Core integrity fell below 50% 1655 | -9/Materials | Central database locked down 1655 | -9/Materials | Central database locked down 1655 | -9/Materials | Central database locked down 1850 | -9/Materials | Discovered new exit (range 9) 2549 | -9/Materials | Build established: Mutant 2582 | -9/Materials | Repaired Hcp. Storage Unit 2683 | -9/Materials | Repaired Hvy. Assault Rifle+ 2779 | -9/Materials | Discovered new exit (range 16) 2977 | -9/Materials | Entered another Materials area 2977 | -8/Materials | Evolved 2 slots: Propulsion x1, Utility x1 3012 | -8/Materials | Build established: Scavenger-Mutant 3354 | -8/Materials | Lost 8 parts (3p2u3w) 3405 | -8/Materials | Lost 3 parts (1p1n1w) 3408 | -8/Materials | Found Prototype Device 3602 | -8/Materials | Discovered new exit (range 3) 3652 | -8/Materials | Build established: Mutant 3684 | -8/Materials | Entered Factory 3684 | -7/Factory | Evolved 2 slots: Power x1, Weapon x1 3819 | -7/Factory | Garrison activated, responded to threat 4176 | -7/Factory | Identified exit to Garrison 4176 | -7/Factory | Entered Garrison 4228 | -7/Garrison | Build established: Scavenger-Tank 4234 | -7/Garrison | Triggered checkpoint 4270 | -7/Garrison | Garrison Relay disabled 4468 | -7/Garrison | Triggered checkpoint 4554 | -7/Garrison | Discovered new exit (range 8) 4732 | -7/Garrison | Garrison Relay disabled 4931 | -7/Garrison | Entered Factory 5117 | -7/Factory | Central database locked down 5280 | -7/Factory | Identified Active Sensor Suite 6289 | -7/Factory | Build established: Scavenger-Skirmisher 6346 | -7/Factory | Identified exit to Garrison 6365 | -7/Factory | Garrison activated, responded to threat 6452 | -7/Factory | Lost 5 parts (4n1w) 6470 | -7/Factory | Core integrity fell below 50% 6475 | -7/Factory | Cargo convoy interrupted 6487 | -7/Factory | Core integrity fell below 20% 6490 | -7/Factory | Destroyed by X-57 Shotgunner with Shotgun Last Messages --------------- 06479_ P-60 Hacker unfolds itself. 06479_ M-28 Smith unfolds itself. 06479_ Penetrated by Slug. 06480_ Acquired 7 matter. 06480_ Gatling Laser+ destroyed. 06480_ Slug penetrates Y-54 Guardian. 06482_ Penetrated by Slug. 06482_ Hvy. Laser destroyed. 06482_ Penetrated by Slug. 06482_ Imp. Cooling System destroyed. 06482_ K-01 Serf collects debris. 06483_ Slug penetrates Y-54 Guardian. 06485_ Penetrated by Slug. 06485_ K-01 Serf collects debris. 06486_ P-60 Hacker resets H-55 Commando, system corruption cleaned. 06486_ Gauss Rifle destroyed. 06488_ Slug penetrates P-60 Hacker. 06488_ K-01 Serf destroyed. 06489_ Slug penetrates Wall. Map ----- +----------------------------------------------------+ | ?????????????????????????????????????????????????? | | ?????????????????????????????????????????????????? | | ?????????????????????????????????????????????????? | | ?????????????????????????????????????????????????? | | ?????????????????????????????????????????????????? | | ?????????????????????????????????????????????????? | | ?????????????????????????????????????????????????? | | ?????????????????????????????????????????????????? | | ??????????????? ????????????????????????????????? | | ??????????????? ???????????????????????????????? | | ??????????? ?? ???????????????????????????????? | | ??????? ??? ??? ??????????????????????????????? | | ??????" """ ?? ??????????????????????????????? | | ????""" """ ???" ########??????????????????????? | | ????? ???? #??????????????????????? | | ????? ?????! #??????????????????????? | | ?????? ????? #???????????" ?????????? | | ?????? ?????? #????????? "" #????????? | | ??????# ??????? % #???????? #????????? | | ??????# #???????# #??????# #????????? | | ??????# #???????# ###### +####??????? | | ??????# #???????# h p! ?????? | | ??????+ #???????# m x m%= ?????? | | ??????# #???????# %= x p hi ????? | | ??????# #???????# =[ x %t ????? | | ??????# ^#???????# *[@! p A ????? | | ??????# #?????######Y######## ##+??????????? | | ??????# ####### [%! #?????????????????? | | ??????# + * = """ #?????????????????? | | ??????# ####### ! >G" #?????????????????? | | ??????# #?????# """ #?????????????????? | | ??????# #?????# """ #?????????????????? | | #?????# #?????# """ #?????????????????? | | #??######+#######?# """ #?????????????????? | | #??# #?# #?????????????????? | | #??# #?# """ """ #?????????????????? | | #??#* """"""" #?# """ """ #?????????????????? | | #??# """"""" #?# """ """ #?????????????????? | | #??# """"""" #?# #?????????????????? | | #??# """"""" #?##############?????????????????? | | #??# #????????????????????????????????? | | #### """"""" #????????????????????????????????? | | + """"""" #????????????????????????????????? | | # """"""" #????????????????????????????????? | | # """"""" #????????????????????????????????? | | ! + #????????????????????????????????? | | % ##############????????????????????????????????? | | = #?????????????????????????????????????????????? | | ????????????????????????????????????????????? | | ##???????????????????????????????????????????? | +----------------------------------------------------+ Best States ------------- Heat Dissipation 62 Energy Generation 35 Energy Capacity 515 Matter Stores 300 Matter Capacity 300 Sight Range 20 Robot Scan Range 15 Terrain Scan Density 10 Jamming Range 12 Base Temperature (-) 100 Armor Coverage 225 Core Shielding 20 Propulsion Shielding 66 Evasion (%) 55 Recoil Reduction 3 Matter Filtering 30 Particle Charging 15 Item Schematics ----------------- None Robot Schematics ------------------ None Fabricated ------------ Nothing Repaired ---------- Hcp. Storage Unit | 15% | -9/Materials Hvy. Assault Rifle | 17% | -9/Materials Studied --------- Hvy. Assault Rifle | -9/Materials | Hacked Lgt. Ion Engine | -9/Materials | Hacked Gatling Laser | -7/Factory | Hacked Alien Tech Used ----------------- None Achievements -------------- DIY Cooler Follow The Leader Spot Them First Challenges ------------ None Game ------ Seed WeaponsConceptTracker Manual? 0 Play Time 01:53:29 Cumulative 11.4 hours Start 2026.07.27 @ 21:43:14 End 2026.07.28 @ 13:51:38 Sessions 3 Manual Loads 0 Difficulty Rogue Special Mode None Game No. 5 Rogue 3 Adventurer 2 Explorer 0 Win Type - Total 0 Types 0/0/0/0/0/0/0/0/0/0 Lore% 4 Gallery% 9 Achievement% 10 Wizard Run 0 Options --------- Layout 1 ASCII 0 Keyboard 0 Movement Mouse Keybinds 0 Fullscreen 2 Font 32/SmallcapsGlow Map View 50x35 Zoom Use 0% Tactical HUD 1 Map Filters NONE Filters NONE Steam 1 RUN: 0f587533-8aaa-4671-ab97-22c11a6c566c